fUST/lending_fUST_20240905
["ID","MTS","AMOUNT","RATE_DAILY","PERIOD"]
[337223723,1725510639940,-612.11854278,0.00020524,2]
[337223830,1725510673445,166.11,0.00021887,120]
[337223831,1725510673644,150.5,0.00021887,120]
[337223832,1725510674097,150.5,0.00021877,120]
[337223833,1725510674573,197.58,0.00021867,120]
[337223835,1725510793141,273.0,0.00021887,120]
[337223837,1725510903199,500.0,0.0002051,2]
[337223838,1725510920859,3087.0731026,0.00020453,2]
[337223839,1725510968428,1106.2306858,0.00020343,2]
[337223841,1725510994045,500.0,0.000205,2]
[337223843,1725511026118,700.0,0.0002032,2]
[337223848,1725511380925,225.4536321,0.00020428,2]
[337223849,1725511415798,160.104423,0.00020428,2]
[337223850,1725511432851,250.0,0.00020502,2]
[337223852,1725511541559,150.0,0.0002,2]
[337224073,1725511838069,-441.04764933,0.0002059,2]
[337224086,1725511840067,-58.95235067,0.0002059,2]
[337224087,1725511840077,-276.5241688,0.00020986,2]
[337224105,1725511845436,-452.7039802,0.00020986,2]
[337224106,1725511845447,-150.0,0.00021,2]
[337224107,1725511845460,-1000.0,0.00021,2]
[337224108,1725511845471,-160.0,0.00021299,3]
[337224109,1725511845482,-160.0,0.00021486,4]
[337224110,1725511845493,-300.0,0.00021499,2]
[337224111,1725511845504,-153.0,0.000215,2]
[337224112,1725511845514,-153.0,0.000215,2]
[337224113,1725511845524,-153.0,0.000215,2]
[337224114,1725511845534,-153.0,0.000215,2]
[337224115,1725511845545,-153.0,0.000215,2]
[337224116,1725511845555,-153.0,0.000215,2]
[337224117,1725511845566,-172.5948882,0.000215,2]
[337224118,1725511845578,-153.0,0.000215,2]
[337224119,1725511845592,-153.0,0.000215,2]
[337224120,1725511845602,-153.0,0.000215,2]
[337224121,1725511845612,-153.0,0.000215,2]
[337224122,1725511845622,-153.0,0.000215,2]
[337224123,1725511845633,-153.0,0.000215,2]
[337224125,1725511845645,-153.0,0.000215,2]
[337224126,1725511845656,-153.0,0.000215,2]
[337224127,1725511845668,-153.0,0.000215,2]
[337224128,1725511845681,-153.0,0.000215,2]
[337224129,1725511845692,-153.0,0.000215,2]
[337224130,1725511845705,-153.0,0.000215,2]
[337224132,1725511845717,-153.0,0.000215,2]
[337224134,1725511845729,-153.0,0.000215,2]
[337224136,1725511845741,-160.0,0.00021673,5]
[337224138,1725511845751,-489.47844685,0.00021781,2]
[337224140,1725511845761,-1000.0,0.000218,2]
[337224142,1725511845771,-1000.0,0.000218,3]
[337224144,1725511845781,-1000.0,0.000218,4]
[337224146,1725511845791,-1000.0,0.000218,5]
[337224147,1725511845801,-1000.0,0.000218,6]
[337224148,1725511845810,-523.0,0.00021807,2]
[337224149,1725511845820,-152.278,0.00021807,2]
[337224151,1725511845830,-597.325,0.00021807,2]
[337224152,1725511845841,-150.338,0.00021807,2]
[337224153,1725511845851,-150.349,0.00021807,2]
[337224154,1725511845861,-1000.0,0.00021807,2]
[337224155,1725511845876,-23046.69483429,0.00021807,3]
[337224156,1725511845889,-177.38627504,0.00021807,2]
[337224157,1725511845899,-1209.05964963,0.0002181,2]
[337224158,1725511845910,-177.38627502,0.0002181,2]
[337224159,1725511845921,-177.38627502,0.00021814,2]
[337224160,1725511845930,-177.38627502,0.00021817,2]
[337224161,1725511845940,-160.0,0.00021859,6]
[337224162,1725511845950,-500.0,0.00021873,2]
[337224163,1725511845960,-501.98218195,0.00021873,2]
[337224164,1725511845970,-500.0,0.00021873,2]
[337224165,1725511845980,-500.0,0.00021873,2]
[337224166,1725511845990,-500.0,0.00021873,2]
[337224167,1725511846000,-299.81070104,0.00021873,2]
[337224168,1725511846010,-481.96,0.00021887,3]
[337224169,1725511846019,-500.0,0.00021896,2]
[337224170,1725511846029,-211.36091821,0.00021896,2]
[337224171,1725511846038,-500.0,0.00021896,2]
[337224172,1725511846048,-313.42869976,0.00021896,2]
[337224173,1725511846058,-414373.362992,0.00021897,3]
[337224174,1725511846067,-3000.0,0.000219,2]
[337224175,1725511846077,-3000.0,0.0002191,2]
[337224177,1725511846086,-228.07090175,0.00021916,2]
[337224178,1725511846097,-5104.54857578,0.00021916,2]
[337224180,1725511846108,-504.57664195,0.00021917,2]
[337224182,1725511846118,-213.86387133,0.00021917,2]
[337224183,1725511846128,-506.16956433,0.00021917,2]
[337224184,1725511846139,-500.0,0.00021917,2]
[337224185,1725511846151,-500.0,0.00021917,2]
[337224186,1725511846161,-501.43587345,0.00021917,2]
[337224187,1725511846172,-500.0,0.00021917,2]
[337224188,1725511846184,-500.0,0.00021917,2]
[337224189,1725511846194,-517.74626989,0.00021917,2]
[337224190,1725511846205,-500.0,0.00021917,2]
[337224191,1725511846214,-500.0,0.00021917,2]
[337224192,1725511846225,-500.0,0.00021917,2]
[337224193,1725511846234,-500.0,0.00021917,2]
[337224194,1725511846244,-502.84827681,0.00021917,2]
[337224195,1725511846253,-500.0,0.00021917,2]
[337224196,1725511846262,-500.0,0.00021917,2]
[337224197,1725511846272,-504.33417531,0.00021917,2]
[337224198,1725511846281,-500.0,0.00021917,2]
[337224199,1725511846291,-500.0,0.00021917,2]
[337224200,1725511846300,-500.0,0.00021917,2]
[337224201,1725511846310,-500.0,0.00021917,2]
[337224202,1725511846320,-500.0,0.00021917,2]
[337224203,1725511846329,-500.0,0.00021917,2]
[337224204,1725511846338,-500.0,0.00021917,2]
[337224205,1725511846468,-500.0,0.00021917,2]
[337224206,1725511846478,-500.0,0.00021917,2]
[337224207,1725511846487,-500.0,0.00021917,2]
[337224208,1725511846496,-500.0,0.00021917,2]
[337224209,1725511846505,-1383.44,0.00021917,2]
[337224210,1725511846514,-500.0,0.00021917,2]
[337224211,1725511846523,-500.0,0.00021917,2]
[337224212,1725511846533,-500.0,0.00021917,2]
[337224213,1725511846542,-500.0,0.00021917,2]
[337224214,1725511846551,-500.0,0.00021917,2]
[337224215,1725511846560,-500.0,0.00021917,2]
[337224216,1725511846570,-492.24955625,0.00021917,2]
[337224217,1725511846579,-500.0,0.00021917,2]
[337224218,1725511846588,-500.0,0.00021917,2]
[337224219,1725511846597,-507.57548077,0.00021917,2]
[337224220,1725511846606,-500.0,0.00021917,2]
[337224221,1725511846615,-500.0,0.00021917,2]
[337224222,1725511846625,-510.20317247,0.00021917,2]
[337224223,1725511846635,-500.0,0.00021917,2]
[337224224,1725511846644,-500.0,0.00021917,2]
[337224225,1725511846653,-500.0,0.00021917,2]
[337224226,1725511846662,-500.0,0.00021917,2]
[337224227,1725511846671,-500.0,0.00021917,2]
[337224228,1725511846680,-500.0,0.00021917,2]
[337224229,1725511846689,-500.0,0.00021917,2]
[337224230,1725511846698,-500.0,0.00021917,2]
[337224231,1725511846708,-500.0,0.00021917,2]
[337224232,1725511846717,-646.86,0.00021917,2]
[337224233,1725511846727,-500.0,0.00021917,2]
[337224234,1725511846736,-500.0,0.00021917,2]
[337224235,1725511846745,-500.0,0.00021917,2]
[337224236,1725511846755,-920.43,0.00021917,2]
[337224237,1725511846764,-500.0,0.00021917,2]
[337224238,1725511846773,-504.09998293,0.00021917,2]
[337224239,1725511846782,-500.0,0.00021917,2]
[337224240,1725511846791,-500.0,0.00021917,2]
[337224241,1725511846800,-500.0,0.00021917,2]
[337224242,1725511846810,-500.0,0.00021917,2]
[337224243,1725511846819,-570.40805257,0.00021917,2]
[337224244,1725511846829,-500.0,0.00021917,2]
[337224245,1725511846841,-530.47,0.00021917,2]
[337224246,1725511846850,-500.0,0.00021917,2]
[337224247,1725511846859,-500.0,0.00021917,2]
[337224248,1725511846869,-500.0,0.00021917,2]
[337224249,1725511846878,-500.0,0.00021917,2]
[337224250,1725511846887,-500.0,0.00021917,2]
[337224251,1725511846896,-544.76,0.00021917,2]
[337224252,1725511846906,-628.95,0.00021917,2]
[337224253,1725511846915,-500.0,0.00021917,2]
[337224254,1725511846925,-500.0,0.00021917,2]
[337224255,1725511846935,-515.11592339,0.00021917,2]
[337224256,1725511846944,-507.50290005,0.00021917,2]
[337224257,1725511846953,-500.0,0.00021917,2]
[337224258,1725511846962,-500.0,0.00021917,2]
[337224259,1725511846972,-502.21313939,0.00021917,2]
[337224260,1725511846981,-500.0,0.00021917,2]
[337224261,1725511846990,-500.0,0.00021917,2]
[337224262,1725511846999,-500.0,0.00021917,2]
[337224263,1725511847009,-550.2867332,0.00021917,2]
[337224264,1725511847018,-500.0,0.00021917,2]
[337224265,1725511847028,-500.0,0.00021917,2]
[337224266,1725511847038,-500.0,0.00021917,2]
[337224267,1725511847047,-500.0,0.00021917,2]
[337224268,1725511847056,-500.0,0.00021917,2]
[337224269,1725511847065,-212.2584979,0.00021917,2]
[337224270,1725511847074,-500.0,0.00021917,2]
[337224271,1725511847083,-403.68669107,0.00021917,2]
[337224272,1725511847092,-500.0,0.00021917,2]
[337224273,1725511847103,-500.0,0.00021917,2]
[337224274,1725511847113,-500.0,0.00021917,2]
[337224275,1725511847122,-500.0,0.00021917,2]
[337224276,1725511847132,-500.0,0.00021917,2]
[337224277,1725511847141,-500.0,0.00021917,2]
[337224278,1725511847150,-500.0,0.00021917,2]
[337224279,1725511847159,-500.0,0.00021917,2]
[337224280,1725511847169,-506.03051465,0.00021917,2]
[337224281,1725511847180,-439.96181446,0.00021917,2]
[337224282,1725511847189,-654.72,0.00021917,2]
[337224283,1725511847198,-500.0,0.00021917,2]
[337224284,1725511847208,-500.0,0.00021917,2]
[337224285,1725511847218,-500.0,0.00021917,2]
[337224286,1725511847227,-503.53,0.00021917,2]
[337224287,1725511847236,-1089.61,0.00021917,2]
[337224288,1725511847245,-500.0,0.00021917,2]
[337224289,1725511847254,-500.0,0.00021917,2]
[337224290,1725511847264,-632.13,0.00021917,2]
[337224291,1725511847273,-500.0,0.00021917,2]
[337224292,1725511847282,-500.0,0.00021917,2]
[337224293,1725511847292,-500.0,0.00021917,2]
[337224294,1725511847301,-500.0,0.00021917,2]
[337224295,1725511847310,-500.0,0.00021917,2]
[337224296,1725511847319,-500.0,0.00021917,2]
[337224297,1725511847329,-500.0,0.00021917,2]
[337224298,1725511847338,-500.0,0.00021917,2]
[337224299,1725511847347,-500.0,0.00021917,2]
[337224300,1725511847357,-500.0,0.00021917,2]
[337224301,1725511847366,-500.0,0.00021917,2]
[337224302,1725511847375,-500.0,0.00021917,2]
[337224303,1725511847384,-500.0,0.00021917,2]
[337224304,1725511847393,-500.0,0.00021917,2]
[337224305,1725511847403,-500.0,0.00021917,2]
[337224306,1725511847412,-500.0,0.00021917,2]
[337224307,1725511847421,-500.0,0.00021917,2]
[337224308,1725511847430,-500.0,0.00021917,2]
[337224309,1725511847439,-500.0,0.00021917,2]
[337224310,1725511847448,-500.0,0.00021917,2]
[337224311,1725511847459,-500.0,0.00021917,2]
[337224312,1725511847468,-500.0,0.00021917,2]
[337224313,1725511847477,-500.0,0.00021917,2]
[337224314,1725511847487,-500.0,0.00021917,2]
[337224315,1725511847496,-578.99,0.00021917,2]
[337224316,1725511847506,-500.0,0.00021917,2]
[337224317,1725511847515,-500.0,0.00021917,2]
[337224318,1725511847524,-445.42136358,0.00021917,2]
[337224319,1725511847533,-500.0,0.00021917,2]
[337224320,1725511847542,-500.0,0.00021917,2]
[337224321,1725511847552,-558.41721302,0.00021917,2]
[337224322,1725511847561,-500.0,0.00021917,2]
[337224323,1725511847571,-554.94258817,0.00021917,2]
[337224324,1725511847579,-500.0,0.00021917,2]
[337224325,1725511847589,-500.0,0.00021917,2]
[337224326,1725511847598,-880.94,0.00021917,2]
[337224327,1725511847608,-500.0,0.00021917,2]
[337224328,1725511847618,-730.47,0.00021917,2]
[337224329,1725511847627,-160.52630265,0.00021917,2]
[337224330,1725511847636,-278.77168789,0.00021917,2]
[337224331,1725511847646,-500.0,0.00021917,2]
[337224332,1725511847655,-500.0,0.00021917,2]
[337224333,1725511847664,-500.0,0.00021917,2]
[337224334,1725511847673,-500.0,0.00021917,2]
[337224335,1725511847682,-500.0,0.00021917,2]
[337224336,1725511847691,-500.0,0.00021917,2]
[337224337,1725511847700,-613.4861072,0.00021917,2]
[337224338,1725511847710,-500.0,0.00021917,2]
[337224339,1725511847719,-500.0,0.00021917,2]
[337224340,1725511847729,-500.0,0.00021917,2]
[337224341,1725511847737,-500.0,0.00021917,2]
[337224342,1725511847746,-500.0,0.00021917,2]
[337224343,1725511847755,-500.0,0.00021917,2]
[337224344,1725511847764,-500.0,0.00021917,2]
[337224345,1725511847773,-512.93,0.00021917,2]
[337224346,1725511847782,-500.0,0.00021917,2]
[337224347,1725511847791,-500.0,0.00021917,2]
[337224348,1725511847800,-500.0,0.00021917,2]
[337224349,1725511847810,-524.27746153,0.00021917,2]
[337224350,1725511847819,-500.0,0.00021917,2]
[337224351,1725511847828,-500.0,0.00021917,2]
[337224352,1725511847838,-500.0,0.00021917,2]
[337224353,1725511847848,-500.0,0.00021917,2]
[337224354,1725511847858,-507.98490207,0.00021917,2]
[337224355,1725511847867,-500.0,0.00021917,2]
[337224356,1725511847877,-983.26,0.00021917,2]
[337224357,1725511847886,-500.0,0.00021917,2]
[337224358,1725511847895,-500.0,0.00021917,2]
[337224359,1725511847904,-500.0,0.00021917,2]
[337224360,1725511847914,-500.0,0.00021917,2]
[337224361,1725511847925,-500.0,0.00021917,2]
[337224362,1725511847935,-500.0,0.00021917,2]
[337224363,1725511847945,-500.0,0.00021917,2]
[337224364,1725511847956,-500.0,0.00021917,2]
[337224365,1725511847965,-500.88124107,0.00021917,2]
[337224366,1725511847974,-1389.41,0.00021917,2]
[337224367,1725511847983,-500.0,0.00021917,2]
[337224368,1725511847992,-500.0,0.00021917,2]
[337224369,1725511848002,-500.0,0.00021917,2]
[337224370,1725511848011,-943.77,0.00021917,2]
[337224371,1725511848021,-500.0,0.00021917,2]
[337224372,1725511848030,-500.0,0.00021917,2]
[337224373,1725511848039,-500.0,0.00021917,2]
[337224374,1725511848048,-500.0,0.00021917,2]
[337224375,1725511848057,-500.0,0.00021917,2]
[337224376,1725511848067,-1098.5,0.00021917,2]
[337224377,1725511848076,-500.0,0.00021917,2]
[337224378,1725511848085,-500.0,0.00021917,2]
[337224379,1725511848095,-500.0,0.00021917,2]
[337224380,1725511848104,-500.0,0.00021917,2]
[337224381,1725511848113,-176.74162093,0.00021917,2]
[337224382,1725511848123,-500.0,0.00021917,2]
[337224383,1725511848132,-500.0,0.00021917,2]
[337224384,1725511848141,-257.67210837,0.00021917,2]
[337224385,1725511848151,-500.0,0.00021917,2]
[337224386,1725511848160,-475.57955973,0.00021917,2]
[337224387,1725511848169,-1000.0,0.00021917,5]
[337224388,1725511848178,-500.0,0.00021917,2]
[337224389,1725511848188,-500.0,0.00021917,2]
[337224390,1725511848197,-500.0,0.00021917,2]
[337224391,1725511848206,-792.4,0.00021917,2]
[337224392,1725511848216,-500.0,0.00021917,2]
[337224393,1725511848225,-500.0,0.00021917,2]
[337224394,1725511848234,-500.0,0.00021917,2]
[337224395,1725511848243,-500.0,0.00021917,2]
[337224396,1725511848254,-383.55932737,0.00021917,2]
[337224397,1725511848263,-500.0,0.00021917,2]
[337224398,1725511848272,-973.32,0.00021917,2]
[337224399,1725511848282,-500.0,0.00021917,2]
[337224400,1725511848292,-500.0,0.00021917,2]
[337224401,1725511848301,-500.0,0.00021917,2]
[337224402,1725511848312,-500.0,0.00021917,2]
[337224403,1725511848322,-500.0,0.00021917,2]
[337224404,1725511848333,-500.0,0.00021917,2]
[337224405,1725511848344,-1667.17,0.00021917,2]
[337224406,1725511848355,-500.0,0.00021917,2]
[337224407,1725511848364,-500.0,0.00021917,2]
[337224408,1725511848374,-713.54,0.00021917,2]
[337224409,1725511848383,-500.0,0.00021917,2]
[337224410,1725511848392,-500.0,0.00021917,2]
[337224411,1725511848403,-500.0,0.00021917,2]
[337224412,1725511848414,-500.0,0.00021917,2]
[337224413,1725511848425,-500.0,0.00021917,2]
[337224414,1725511848435,-500.0,0.00021917,2]
[337224415,1725511848445,-500.0,0.00021917,2]
[337224416,1725511848456,-500.0,0.00021917,2]
[337224417,1725511848466,-500.0,0.00021917,2]
[337224418,1725511848478,-508.70727098,0.00021917,2]
[337224419,1725511848487,-509.16032763,0.00021917,2]
[337224420,1725511848497,-500.0,0.00021917,2]
[337224421,1725511848506,-500.0,0.00021917,2]
[337224422,1725511848516,-500.0,0.00021917,2]
[337224423,1725511848526,-500.0,0.00021917,2]
[337224424,1725511848537,-600.19,0.00021917,2]
[337224425,1725511848547,-500.0,0.00021917,2]
[337224426,1725511848557,-500.0,0.00021917,2]
[337224427,1725511848567,-1200.16,0.00021917,2]
[337224428,1725511848576,-500.0,0.00021917,2]
[337224429,1725511848586,-500.0,0.00021917,2]
[337224430,1725511848596,-547.39,0.00021917,2]
[337224431,1725511848606,-500.0,0.00021917,2]
[337224432,1725511848618,-500.0,0.00021917,2]
[337224433,1725511848628,-597.91,0.00021917,2]
[337224434,1725511848638,-500.0,0.00021917,2]
[337224435,1725511848649,-500.0,0.00021917,2]
[337224436,1725511848659,-724.8,0.00021917,2]
[337224437,1725511848671,-500.0,0.00021917,2]
[337224438,1725511848681,-503.2820605,0.00021917,2]
[337224439,1725511848691,-500.0,0.00021917,2]
[337224440,1725511848701,-519.41,0.00021917,2]
[337224441,1725511848711,-500.0,0.00021917,2]
[337224442,1725511848721,-500.0,0.00021917,2]
[337224443,1725511848730,-500.0,0.00021917,2]
[337224444,1725511848742,-500.0,0.00021917,2]
[337224445,1725511848752,-500.0,0.00021917,2]
[337224446,1725511848764,-1172.27,0.00021917,2]
[337224447,1725511848774,-500.0,0.00021917,2]
[337224448,1725511848783,-686.67,0.00021917,2]
[337224449,1725511848793,-505.79494573,0.00021917,2]
[337224450,1725511848802,-610.92,0.00021917,2]
[337224451,1725511848814,-500.0,0.00021917,2]
[337224452,1725511848824,-500.0,0.00021917,2]
[337224453,1725511848836,-500.0,0.00021917,2]
[337224454,1725511848847,-649.5787835,0.00021917,2]
[337224455,1725511848857,-500.0,0.00021917,2]
[337224456,1725511848867,-500.0,0.00021917,2]
[337224457,1725511848876,-500.0,0.00021917,2]
[337224458,1725511848886,-500.0,0.00021917,2]
[337224459,1725511848896,-630.41,0.00021917,2]
[337224460,1725511848906,-502.93671426,0.00021917,2]
[337224461,1725511848916,-500.0,0.00021917,2]
[337224462,1725511848925,-1809.8,0.00021917,2]
[337224463,1725511848934,-500.0,0.00021917,2]
[337224464,1725511848944,-500.0,0.00021917,2]
[337224465,1725511848955,-500.0,0.00021917,2]
[337224466,1725511848965,-500.0,0.00021917,2]
[337224467,1725511848975,-1723.36,0.00021917,2]
[337224468,1725511848985,-871.55,0.00021917,2]
[337224469,1725511848996,-585.23045116,0.00021917,2]
[337224470,1725511849007,-504.07144981,0.00021917,2]
[337224471,1725511849016,-500.0,0.00021917,2]
[337224472,1725511849026,-500.0,0.00021917,2]
[337224473,1725511849035,-615.73,0.00021917,2]
[337224474,1725511849045,-529.81732066,0.00021917,2]
[337224475,1725511849055,-1096.16,0.00021917,2]
[337224476,1725511849065,-500.0,0.00021917,2]
[337224477,1725511849074,-500.0,0.00021917,2]
[337224478,1725511849083,-500.0,0.00021917,2]
[337224479,1725511849093,-500.0,0.00021917,2]
[337224480,1725511849103,-500.0,0.00021917,2]
[337224481,1725511849113,-500.0,0.00021917,2]
[337224482,1725511849122,-490.01603074,0.00021917,2]
[337224483,1725511849132,-1500.55,0.00021917,2]
[337224484,1725511849142,-500.0,0.00021917,2]
[337224485,1725511849152,-500.0,0.00021917,2]
[337224486,1725511849163,-244.60549376,0.00021917,2]
[337224487,1725511849173,-507.36380775,0.00021917,2]
[337224488,1725511849185,-500.0,0.00021917,2]
[337224489,1725511849194,-500.0,0.00021917,2]
[337224490,1725511849205,-500.0,0.00021917,2]
[337224491,1725511849216,-734.3,0.00021917,2]
[337224492,1725511849225,-500.0,0.00021917,2]
[337224493,1725511849235,-510.93333833,0.00021917,2]
[337224494,1725511849244,-763.41,0.00021917,2]
[337224495,1725511849253,-500.0,0.00021917,2]
[337224496,1725511849262,-500.0,0.00021917,2]
[337224497,1725511849271,-963.02,0.00021917,2]
[337224498,1725511849281,-500.0,0.00021917,2]
[337224499,1725511849290,-500.0,0.00021917,2]
[337224500,1725511849300,-500.0,0.00021917,2]
[337224501,1725511849310,-500.0,0.00021917,2]
[337224502,1725511849319,-500.0,0.00021917,2]
[337224503,1725511849329,-500.0,0.00021917,2]
[337224504,1725511849339,-505.29055198,0.00021917,2]
[337224505,1725511849348,-500.0,0.00021917,2]
[337224506,1725511849359,-500.0,0.00021917,2]
[337224507,1725511849369,-1683.27,0.00021917,2]
[337224508,1725511849380,-500.0,0.00021917,2]
[337224509,1725511849390,-500.0,0.00021917,2]
[337224510,1725511849400,-1325.51,0.00021917,2]
[337224511,1725511849410,-500.0,0.00021917,2]
[337224512,1725511849420,-500.0,0.00021917,2]
[337224513,1725511849430,-1379.71,0.00021917,2]
[337224514,1725511849440,-500.0,0.00021917,2]
[337224515,1725511849450,-510.35,0.00021917,2]
[337224516,1725511849460,-500.0,0.00021917,2]
[337224517,1725511849470,-725.95,0.00021917,2]
[337224518,1725511849480,-506.38395102,0.00021917,2]
[337224519,1725511849490,-500.0,0.00021917,2]
[337224520,1725511849500,-506.3387075,0.00021917,2]
[337224521,1725511849510,-500.0,0.00021917,2]
[337224522,1725511849521,-500.0,0.00021917,2]
[337224523,1725511849531,-500.0,0.00021917,2]
[337224524,1725511849542,-500.0,0.00021917,2]
[337224525,1725511849553,-381.22287849,0.00021917,2]
[337224526,1725511849563,-1055.41,0.00021917,2]
[337224527,1725511849573,-988.72,0.00021917,2]
[337224528,1725511849584,-500.0,0.00021917,2]
[337224529,1725511849595,-1655.83,0.00021917,2]
[337224530,1725511849606,-643.89124828,0.00021917,2]
[337224531,1725511849617,-745.97,0.00021917,2]
[337224532,1725511849626,-610.59132286,0.00021917,2]
[337224533,1725511849637,-500.0,0.00021917,2]
[337224534,1725511849647,-500.0,0.00021917,2]
[337224535,1725511849656,-500.0,0.00021917,2]
[337224536,1725511849666,-1402.62,0.00021917,2]
[337224537,1725511849677,-500.0,0.00021917,2]
[337224538,1725511849686,-500.0,0.00021917,2]
[337224539,1725511849697,-500.0,0.00021917,2]
[337224540,1725511849707,-500.0,0.00021917,2]
[337224541,1725511849716,-500.1281059,0.00021917,2]
[337224542,1725511849726,-544.61817629,0.00021917,2]
[337224543,1725511849735,-500.0,0.00021917,2]
[337224544,1725511849744,-505.23838641,0.00021917,2]
[337224545,1725511849753,-500.0,0.00021917,2]
[337224546,1725511849762,-500.0,0.00021917,2]
[337224547,1725511849771,-500.0,0.00021917,2]
[337224548,1725511849780,-500.0,0.00021917,2]
[337224549,1725511849789,-500.0,0.00021917,2]
[337224550,1725511849799,-500.0,0.00021917,2]
[337224551,1725511849808,-500.0,0.00021917,2]
[337224552,1725511849817,-500.0,0.00021917,2]
[337224553,1725511849827,-668.05,0.00021917,2]
[337224554,1725511849839,-500.0,0.00021917,2]
[337224555,1725511849848,-500.0,0.00021917,2]
[337224556,1725511849857,-781.84,0.00021917,2]
[337224557,1725511849866,-500.0,0.00021917,2]
[337224558,1725511849875,-500.0,0.00021917,2]
[337224559,1725511849885,-500.0,0.00021917,2]
[337224560,1725511849894,-502.11,0.00021917,2]
[337224561,1725511849903,-858.62,0.00021917,2]
[337224562,1725511849914,-701.5,0.00021917,2]
[337224563,1725511849923,-1709.97,0.00021917,2]
[337224564,1725511849933,-500.0,0.00021917,2]
[337224565,1725511849942,-500.0,0.00021917,2]
[337224566,1725511849951,-547.43,0.00021917,2]
[337224567,1725511849972,-500.0,0.00021917,2]
[337224568,1725511849981,-500.0,0.00021917,2]
[337224569,1725511849990,-500.0,0.00021917,2]
[337224570,1725511849999,-1601.35,0.00021917,2]
[337224571,1725511850008,-490.41293969,0.00021917,2]
[337224572,1725511850017,-1486.04,0.00021917,2]
[337224573,1725511850027,-505.9964037,0.00021917,2]
[337224574,1725511850036,-500.0,0.00021917,2]
[337224575,1725511850045,-500.0,0.00021917,2]
[337224576,1725511850055,-589.18249291,0.00021917,2]
[337224577,1725511850064,-576.1,0.00021917,2]
[337224578,1725511850073,-500.0,0.00021917,2]
[337224579,1725511850082,-555.25,0.00021917,2]
[337224580,1725511850091,-221.13790341,0.00021917,2]
[337224581,1725511850101,-500.0,0.00021917,2]
[337224582,1725511850110,-500.0,0.00021917,2]
[337224583,1725511850119,-1062.22,0.00021917,2]
[337224584,1725511850128,-3644.86,0.00021917,2]
[337224585,1725511850139,-500.0,0.00021917,2]
[337224586,1725511850148,-500.0,0.00021917,2]
[337224587,1725511850158,-500.0,0.00021917,2]
[337224588,1725511850167,-500.0,0.00021917,2]
[337224589,1725511850176,-500.0,0.00021917,2]
[337224590,1725511850185,-500.0,0.00021917,2]
[337224591,1725511850194,-500.0,0.00021917,2]
[337224592,1725511850205,-500.0,0.00021917,2]
[337224593,1725511850217,-500.0,0.00021917,2]
[337224594,1725511850226,-500.0,0.00021917,2]
[337224595,1725511850235,-516.25,0.00021917,2]
[337224596,1725511850245,-500.0,0.00021917,2]
[337224597,1725511850254,-600.47,0.00021917,2]
[337224598,1725511850263,-500.0,0.00021917,2]
[337224599,1725511850272,-500.0,0.00021917,2]